bitfinex-derivatives/quotes_BTCF0:USTF0_20250827
["timestamp","ask_amount","ask_price","bid_price","bid_amount"]
[1756310414039,0.0902024,112090.0,112080.0,1.90871093]
[1756310414333,0.0922024,112090.0,112080.0,1.90871093]
[1756310415235,0.0922024,112090.0,112080.0,1.4709675]
[1756310415440,0.0922024,112090.0,112080.0,1.90871093]
[1756310415641,0.0922024,112090.0,112080.0,1.4709675]
[1756310415940,0.0922024,112090.0,112080.0,1.90871093]
[1756310417340,0.0922024,112090.0,112080.0,2.25871093]
[1756310418034,0.0922024,112090.0,112080.0,1.8209675]
[1756310418239,0.0922024,112090.0,112080.0,2.25871093]
[1756310418938,0.0922024,112090.0,112080.0,1.31570343]
[1756310419139,0.0922024,112090.0,112080.0,2.16778343]
[1756310419334,0.0922024,112090.0,112080.0,1.73004]
[1756310419537,0.0922024,112090.0,112080.0,0.87796]
[1756310419743,0.59536583,112090.0,112080.0,1.39984]
[1756310420131,0.59536583,112090.0,112080.0,1.40012]
[1756310420840,0.1383324,112090.0,112080.0,1.92707093]
[1756310421033,0.1164924,112090.0,112080.0,1.83786343]
[1756310421835,0.1164924,112090.0,112080.0,1.40012]
[1756310422043,0.1164924,112090.0,112080.0,1.83786343]
[1756310422244,0.1164924,112090.0,112080.0,1.40012]
[1756310422543,0.0922024,112090.0,112080.0,1.40012]
[1756310422938,0.0922024,112090.0,112080.0,1.83786343]
[1756310425745,0.0922024,112090.0,112080.0,1.40012]
[1756310425945,0.0922024,112090.0,112080.0,1.83786343]
[1756310426940,0.0922024,112090.0,112080.0,1.40012]
[1756310427146,0.0922024,112090.0,112080.0,1.83786343]
[1756310428646,0.0922024,112090.0,112080.0,1.40012]
[1756310428845,0.0922024,112090.0,112080.0,1.83786343]
[1756310429243,0.0922024,112090.0,112080.0,0.98570343]
[1756310429550,0.59536583,112090.0,112080.0,1.40136]
[1756310430746,0.1576224,112090.0,112080.0,0.54796]
[1756310430949,0.87356671,112090.0,112080.0,0.11585]
[1756310431151,2.08708671,112090.0,112080.0,0.02]
[1756310431447,2.08708671,112090.0,112080.0,0.07533]
[1756310431836,1.23436671,112090.0,112080.0,0.18716]
[1756310432040,2.08708671,112090.0,112080.0,0.18716]
[1756310432345,1.23436671,112090.0,112080.0,0.18716]
[1756310432853,1.23436671,112090.0,112080.0,0.02]
[1756310434146,0.79662328,112090.0,112080.0,0.1492]
[1756310434451,1.23436671,112090.0,112080.0,0.07533]
[1756310434645,1.33201671,112090.0,112080.0,0.02]
[1756310434849,1.33201671,112090.0,112080.0,1e-07]
[1756310435050,0.0892075,112080.0,112070.0,0.04751736]
[1756310435250,1.87007181,112080.0,112070.0,0.15851736]
[1756310435450,1.87007181,112080.0,112070.0,0.11751736]
[1756310435655,0.51958838,112080.0,112070.0,0.19098736]
[1756310435957,0.96956181,112080.0,112070.0,0.19098736]
[1756310436146,1.01715181,112080.0,112070.0,0.19098736]
[1756310436341,0.57940838,112080.0,112070.0,0.19098736]
[1756310436546,1.16545181,112080.0,112070.0,0.19098736]
[1756310436850,1.16645181,112080.0,112070.0,0.19098736]
[1756310437045,1.16645181,112080.0,112070.0,0.13953736]
[1756310437252,1.16645181,112080.0,112070.0,0.11751736]
[1756310437453,1.16645181,112080.0,112070.0,0.19098736]
[1756310439261,1.13869181,112080.0,112070.0,0.19098736]
[1756310439451,1.16645181,112080.0,112070.0,0.19098736]
[1756310439755,0.77745093,112080.0,112070.0,0.19098736]
[1756310440350,0.80566169,112080.0,112070.0,0.19098736]
[1756310440750,0.80566169,112080.0,112070.0,0.17103]
[1756310441151,0.80566301,112080.0,112070.0,0.17103]
[1756310441452,0.80566301,112080.0,112070.0,0.09756]
[1756310442050,0.80566301,112080.0,112070.0,0.07]
[1756310442259,0.80566301,112080.0,112070.0,0.09756]
[1756310442260,1.16646301,112080.0,112070.0,0.09756]
[1756310442462,0.0892154,112070.0,112060.0,0.0001342]
[1756310442759,1.88771005,112070.0,112060.0,0.3476942]
[1756310442958,1.88771005,112070.0,112060.0,0.3697142]
[1756310443158,1.88771005,112070.0,112060.0,0.3201342]
[1756310443356,1.88771005,112070.0,112060.0,0.1301342]
[1756310443753,1.84826662,112070.0,112060.0,0.1301342]
[1756310444059,0.0892314,112050.0,112040.0,1.34446017]
[1756310444250,0.0892314,112050.0,112040.0,0.82350017]
[1756310444251,0.1090614,112050.0,112040.0,0.82350017]
[1756310444455,0.1090614,112050.0,112040.0,1.2612436]
[1756310444855,0.1080614,112050.0,112040.0,0.82350017]
[1756310445056,0.1080614,112050.0,112040.0,1.2612436]
[1756310445259,0.1080614,112050.0,112040.0,0.82350017]
[1756310445559,0.1358214,112050.0,112040.0,0.82350017]
[1756310445747,0.1080614,112050.0,112040.0,0.82450017]
[1756310445948,0.0882314,112050.0,112040.0,1.2622436]
[1756310446359,0.13289183,112050.0,112040.0,1.2622436]
[1756310447661,0.13289183,112050.0,112040.0,1.1612136]
[1756310447960,0.13289183,112050.0,112040.0,1.57963017]
[1756310448164,0.13289183,112050.0,112040.0,2.0173736]
[1756310449163,0.13289183,112050.0,112040.0,1.57963017]
[1756310449359,0.13289183,112050.0,112040.0,1.63966017]
[1756310449664,0.13289183,112050.0,112040.0,2.0774036]
[1756310449864,0.13289183,112050.0,112040.0,2.0772036]
[1756310450566,0.16065183,112050.0,112040.0,1.63946017]
[1756310450763,0.13289183,112050.0,112040.0,2.0772036]
[1756310451064,0.13289183,112050.0,112040.0,1.2212436]
[1756310451361,0.16065183,112050.0,112040.0,0.78350017]
[1756310451663,0.97902526,112050.0,112040.0,0.34058]
[1756310451864,1.86213684,112050.0,112040.0,0.34058]
[1756310452360,1.86213684,112050.0,112040.0,0.39203]
[1756310452565,0.56923341,112050.0,112040.0,0.39203]
[1756310452764,0.93143526,112050.0,112040.0,0.291]
[1756310452963,0.93243526,112050.0,112040.0,0.29]
[1756310453164,0.93443526,112050.0,112040.0,0.29]
[1756310453964,0.13589183,112050.0,112040.0,0.29]
[1756310454358,0.1637995,112050.0,112040.0,0.29]
[1756310454559,0.13489183,112050.0,112040.0,0.29]
[1756310455160,0.49569183,112050.0,112040.0,0.29]
[1756310455363,0.60054288,112050.0,112040.0,0.29]
[1756310455563,0.96034288,112050.0,112040.0,0.29]
[1756310455765,0.96134288,112050.0,112040.0,0.29]
[1756310456866,1.10964288,112050.0,112040.0,0.29]
[1756310457966,0.74884288,112050.0,112040.0,0.29]
[1756310458766,1.10964288,112050.0,112040.0,0.29]
[1756310458966,0.67189945,112050.0,112040.0,0.29]
[1756310459167,1.10964288,112050.0,112040.0,0.29]
[1756310459872,1.10864288,112050.0,112040.0,0.29]
[1756310460169,0.67189945,112050.0,112040.0,0.29]
[1756310460370,1.96488288,112050.0,112040.0,0.29]
[1756310460872,1.60380288,112050.0,112040.0,0.29]
[1756310461368,0.16279945,112050.0,112040.0,0.29]
[1756310461575,0.16179945,112050.0,112040.0,0.72774343]
[1756310461767,0.16379945,112050.0,112040.0,0.72774343]
[1756310462565,0.16379945,112050.0,112040.0,1.33854343]
[1756310463766,0.16379945,112050.0,112040.0,1.42778273]
[1756310464168,0.03090762,112050.0,112040.0,2.19552616]
[1756310464567,0.12013902,112050.0,112040.0,1.86552616]
[1756310465467,0.11713902,112050.0,112040.0,1.86652616]
[1756310465668,0.11713902,112050.0,112040.0,1.86752616]
[1756310466270,0.02790762,112050.0,112040.0,2.20752616]
[1756310467668,0.13380359,112060.0,112050.0,0.0892314]
[1756310467874,0.16162674,112060.0,112050.0,2.13122314]
[1756310468465,0.11705365,112060.0,112050.0,2.13122314]
[1756310469172,0.11705365,112060.0,112050.0,2.38122314]
[1756310469779,0.11805365,112060.0,112050.0,2.38122314]
[1756310470366,0.11805365,112060.0,112050.0,1.52734314]
[1756310470576,0.11805365,112060.0,112050.0,1.18811174]
[1756310470773,0.11805365,112060.0,112050.0,0.75036831]
[1756310470976,0.57386807,112060.0,112050.0,1.60372831]
[1756310471276,0.13612464,112060.0,112050.0,1.60372831]
[1756310471677,0.13612464,112060.0,112050.0,1.60368831]
[1756310471980,0.38612464,112060.0,112050.0,0.75036831]
[1756310472277,0.38612464,112060.0,112050.0,1.60364831]
[1756310472578,0.38612464,112060.0,112050.0,0.75036831]
[1756310472780,0.38612464,112060.0,112050.0,1.60356831]
[1756310473690,0.38612464,112060.0,112050.0,2.04131174]
[1756310474188,0.13612464,112060.0,112050.0,2.13054314]
[1756310474984,0.11805365,112060.0,112050.0,2.13054314]
[1756310475380,0.11805365,112060.0,112050.0,2.38054314]
[1756310475585,0.11805365,112060.0,112050.0,2.37966314]
[1756310477286,0.0902305,112060.0,112050.0,2.71966314]
[1756310478689,0.0902305,112060.0,112050.0,2.37966314]
[1756310480693,0.0902305,112060.0,112050.0,2.74966314]
[1756310481088,0.001,112060.0,112050.0,2.37966314]
[1756310481396,0.001,112060.0,112050.0,2.73966314]
[1756310481696,0.0902234,112060.0,112050.0,1.52734314]
[1756310481892,0.0902234,112060.0,112050.0,1.88734314]
[1756310482097,0.0902234,112060.0,112050.0,2.12850314]
[1756310483596,0.0902234,112060.0,112050.0,2.44850314]
[1756310484395,0.0902234,112060.0,112050.0,1.27734314]
[1756310484592,0.0902234,112060.0,112050.0,2.12826314]
[1756310484788,0.0902234,112060.0,112050.0,2.12766314]
[1756310484991,0.04005733,112070.0,112050.0,2.12766314]
[1756310485191,0.04005733,112070.0,112060.0,0.3608]
[1756310485391,0.06783671,112070.0,112060.0,0.6908]
[1756310485591,0.06783671,112070.0,112060.0,1.5408]
[1756310485796,0.11246135,112070.0,112060.0,0.6908]
[1756310485999,0.11246135,112070.0,112060.0,1.5408]
[1756310486296,0.36246135,112070.0,112060.0,1.97842343]
[1756310486998,0.36346135,112070.0,112060.0,1.5406]
[1756310487297,0.36346135,112070.0,112060.0,0.6908]
[1756310487494,0.36346135,112070.0,112060.0,1.54092]
[1756310487693,0.80120478,112070.0,112060.0,0.6908]
[1756310487895,0.80120478,112070.0,112060.0,1.17996]
[1756310488800,0.80220478,112070.0,112060.0,1.17996]
[1756310489098,0.36446135,112070.0,112060.0,1.17996]
[1756310489497,0.80220478,112070.0,112060.0,1.17996]
[1756310489899,1.16300478,112070.0,112060.0,0.33]
[1756310490096,1.16300478,112070.0,112050.0,1.23036831]
[1756310490296,0.0892234,112060.0,112050.0,1.55032831]
[1756310490491,0.0892234,112060.0,112050.0,0.6808]
[1756310490702,0.10699263,112060.0,112050.0,1.53076]
[1756310491101,0.10699263,112060.0,112050.0,1.16996]
[1756310491396,0.10699263,112060.0,112050.0,1.53076]
[1756310492097,0.10699263,112060.0,112050.0,1.96850343]
[1756310496192,0.0892234,112060.0,112050.0,2.05773483]
[1756310496904,0.0892234,112060.0,112050.0,1.96734343]
[1756310497102,0.0892234,112060.0,112050.0,1.54940446]
[1756310497302,0.0892234,112060.0,112050.0,1.98714789]
[1756310497904,0.0892234,112060.0,112050.0,1.13834789]
[1756310498096,0.0892234,112060.0,112050.0,2.07625929]
[1756310498603,0.0892234,112060.0,112050.0,1.22757929]
[1756310498804,0.0892234,112060.0,112050.0,1.63839586]
[1756310499006,0.0892234,112060.0,112050.0,2.07613929]
[1756310499304,0.0892234,112060.0,112050.0,1.22757929]
[1756310499501,0.0892234,112060.0,112050.0,2.07597929]
[1756310500201,0.08468197,112070.0,112050.0,2.07597929]
[1756310500403,0.08468197,112070.0,112060.0,0.79854343]
[1756310500607,0.08468197,112070.0,112060.0,1.15854343]
[1756310501708,0.23298197,112070.0,112060.0,1.24776683]
[1756310501902,0.19292464,112070.0,112060.0,1.24776683]
[1756310502108,0.19392464,112070.0,112060.0,1.24776683]
[1756310502304,0.19492464,112070.0,112060.0,1.24776683]
[1756310502505,0.1503,112070.0,112060.0,1.49776683]
[1756310502706,0.002,112070.0,112060.0,1.85776683]
[1756310503410,0.002,112070.0,112060.0,1.49776683]
[1756310504710,0.002,112070.0,112060.0,1.84776683]
[1756310504909,0.002,112070.0,112060.0,1.49776683]
[1756310507112,0.04675387,112070.0,112060.0,1.49776683]
[1756310507411,0.1481,112090.0,112070.0,0.1979968]
[1756310507611,0.26547937,112090.0,112080.0,1.73510593]
[1756310507812,0.26547937,112090.0,112080.0,2.05510593]
[1756310508506,0.26547937,112090.0,112080.0,2.05462593]
[1756310508708,0.27047937,112090.0,112080.0,2.05446593]
[1756310509215,0.26847937,112090.0,112080.0,2.05446593]
[1756310509415,0.27147937,112090.0,112080.0,2.05446593]
[1756310509616,0.3168628,112090.0,112080.0,2.05446593]
[1756310509815,0.3168628,112090.0,112080.0,1.20774593]
[1756310510016,0.3168628,112090.0,112080.0,2.05458593]
[1756310510914,0.3138628,112090.0,112080.0,2.05458593]
[1756310511114,0.3168628,112090.0,112080.0,2.05458593]
[1756310513416,0.0795556,112090.0,112080.0,2.05458593]
[1756310513819,0.0795556,112090.0,112080.0,2.41538593]
[1756310514019,0.05138343,112090.0,112080.0,2.41538593]
[1756310514411,0.05138343,112090.0,112080.0,3.10312936]
[1756310514611,0.05138343,112090.0,112080.0,3.42312936]
[1756310514809,0.05138343,112090.0,112080.0,3.10312936]
[1756310515708,0.04538343,112090.0,112080.0,3.10512936]
[1756310515912,0.0891919,112100.0,112090.0,0.0891995]
[1756310516115,0.16143685,112100.0,112090.0,1.23774293]
[1756310516421,0.16143685,112100.0,112090.0,2.08350293]
[1756310516622,0.30953685,112100.0,112090.0,2.15324022]
[1756310516923,0.32749473,112100.0,112090.0,1.21828072]
[1756310517117,0.32749473,112100.0,112090.0,1.55656]
[1756310517415,0.32749473,112100.0,112090.0,1.6457595]
[1756310517620,0.32749473,112100.0,112090.0,0.7108]
[1756310517822,1.01523816,112100.0,112090.0,1.6457595]
[1756310518114,1.01523816,112100.0,112090.0,1.55656]
[1756310518717,0.0891995,112090.0,112080.0,0.88774593]
[1756310518913,0.0891995,112090.0,112080.0,2.11350593]
[1756310519922,0.0891995,112090.0,112080.0,0.8300025]
[1756310520216,0.0891995,112090.0,112080.0,1.58652]
[1756310520711,0.55496254,112090.0,112080.0,0.381]
[1756310520911,1.16576254,112090.0,112080.0,1.22672]
[1756310521116,0.80496254,112090.0,112080.0,0.382]
[1756310521319,0.80496254,112090.0,112080.0,1.22772]
[1756310522122,1.16576254,112090.0,112080.0,1.22772]
[1756310522317,1.16576254,112090.0,112080.0,1.22672]
[1756310522622,1.16576254,112090.0,112080.0,1.22772]
[1756310522922,1.16576254,112090.0,112080.0,0.382]
[1756310523422,1.16576254,112090.0,112080.0,0.111]
[1756310524318,2.01148254,112090.0,112080.0,0.11]
[1756310525018,1.16576254,112090.0,112080.0,0.11]
[1756310525222,2.01148254,112090.0,112080.0,0.11]
[1756310526713,0.0892075,112080.0,112070.0,0.019566]
[1756310526918,0.11722711,112080.0,112070.0,0.399566]
[1756310527524,0.55497054,112080.0,112070.0,0.399566]
[1756310527725,0.11722711,112080.0,112070.0,0.399566]
[1756310528018,0.11722711,112080.0,112070.0,0.400566]
[1756310528225,0.11722711,112080.0,112070.0,1.28932493]
[1756310528825,0.11722711,112080.0,112070.0,1.28832493]
[1756310529224,0.02801961,112080.0,112070.0,1.53832493]
[1756310529436,0.10697616,112090.0,112080.0,0.0892075]
[1756310529628,0.1352117,112090.0,112080.0,1.19775093]
[1756310529822,0.1352117,112090.0,112080.0,1.68267093]
[1756310530523,0.1352117,112090.0,112080.0,2.04347093]
[1756310530724,0.1352117,112090.0,112080.0,1.19775093]
[1756310531822,0.2833117,112090.0,112080.0,1.19775093]
[1756310536033,0.2833117,112090.0,112080.0,1.10854343]
[1756310537539,0.2833117,112090.0,112080.0,1.10854343]
[1756310537732,0.2833117,112090.0,112080.0,1.19775093]
[1756310538036,0.2833117,112090.0,112080.0,1.10854343]
[1756310543732,0.2833117,112090.0,112080.0,0.6708]
[1756310543940,0.2833117,112090.0,112080.0,1.5164]
[1756310544633,1.33185513,112090.0,112080.0,0.31]
[1756310545639,0.97105513,112090.0,112080.0,0.31]
[1756310545940,0.5333117,112090.0,112080.0,0.6708]
[1756310546139,0.97105513,112090.0,112080.0,0.6708]
[1756310546334,1.81665513,112090.0,112080.0,0.6708]
[1756310547240,0.5333117,112090.0,112080.0,0.6708]
[1756310547437,1.3789117,112090.0,112080.0,0.6708]
[1756310547834,1.3789117,112090.0,112080.0,1.10854343]
[1756310548433,1.3789117,112090.0,112080.0,0.31]
[1756310549738,1.81665513,112090.0,112080.0,0.31]
[1756310549938,1.3789117,112090.0,112080.0,0.6708]
[1756310553541,1.7397117,112090.0,112080.0,0.31]
[1756310553839,1.3789117,112090.0,112080.0,0.31]
[1756310554240,1.81665513,112090.0,112080.0,0.6708]
[1756310555846,0.0892154,112070.0,112060.0,0.3608]
[1756310556143,0.0892234,112060.0,112050.0,1.75301929]
[1756310556340,0.0892234,112060.0,112050.0,2.06301929]
[1756310556737,0.9347005,112070.0,112060.0,0.0892234]
[1756310556939,0.9631773,112070.0,112060.0,1.19776683]
[1756310557138,0.0284768,112070.0,112060.0,1.19876683]
[1756310557331,0.2373077,112080.0,112070.0,0.0892154]
[1756310557538,0.26578463,112080.0,112070.0,1.22775883]
[1756310559141,0.26578463,112080.0,112070.0,2.07319883]
[1756310560140,0.26578787,112080.0,112070.0,2.32319883]
[1756310561049,0.02848017,112080.0,112070.0,2.34283283]
[1756310561248,0.02848017,112080.0,112070.0,1.9050894]
[1756310561450,0.11768767,112080.0,112070.0,1.49739283]
[1756310561641,0.11768767,112080.0,112070.0,2.09279283]
[1756310561843,0.5554311,112080.0,112070.0,0.720434]
[1756310562043,0.0892234,112060.0,112050.0,1.31523246]
[1756310562250,0.0892234,112060.0,112050.0,1.66523246]
[1756310562551,0.0892234,112060.0,112050.0,2.10297589]
[1756310562737,0.0892234,112060.0,112050.0,0.73060446]
[1756310562943,0.0892234,112060.0,112050.0,1.66523586]
[1756310563249,0.0892234,112060.0,112050.0,2.10297929]
[1756310563450,0.0892234,112060.0,112050.0,2.10497929]
[1756310563748,0.9346205,112070.0,112050.0,2.10497929]
[1756310564045,0.1176913,112070.0,112060.0,0.88776683]
[1756310564350,0.0284708,112070.0,112060.0,1.24776683]
[1756310564754,0.0284708,112070.0,112060.0,1.49776683]
[1756310565050,0.95237636,112090.0,112080.0,0.0892075]
[1756310565251,0.98084681,112090.0,112080.0,1.25775093]
[1756310565652,0.13544681,112090.0,112080.0,1.25775093]
[1756310566049,0.13544681,112090.0,112080.0,1.16854343]
[1756310566553,0.13644681,112090.0,112080.0,1.16854343]
[1756310567156,0.13744681,112090.0,112080.0,1.16854343]
[1756310568350,0.04824141,112090.0,112080.0,1.25775093]
[1756310568652,0.13744091,112090.0,112080.0,0.8200075]
[1756310568956,0.13744091,112090.0,112080.0,2.10311093]
[1756310569456,0.13744091,112090.0,112080.0,1.25775093]
[1756310569657,0.13644091,112090.0,112080.0,1.25775093]
[1756310571056,0.13644091,112090.0,112080.0,0.8200075]
[1756310571257,0.13544091,112090.0,112080.0,1.25875093]
[1756310571558,0.28354091,112090.0,112080.0,1.25875093]
[1756310572056,0.28354091,112090.0,112080.0,1.16954343]
[1756310573558,0.28354091,112090.0,112080.0,1.25875093]
[1756310574355,0.17657045,112090.0,112080.0,1.25875093]
[1756310575662,0.17657045,112090.0,112080.0,1.61955093]
[1756310575850,0.17657045,112090.0,112080.0,1.1818075]
[1756310576055,0.17657045,112090.0,112080.0,1.61955093]
[1756310576658,0.02847045,112090.0,112080.0,1.61955093]
[1756310578461,0.11766995,112090.0,112080.0,1.93848]
[1756310578759,0.11766995,112090.0,112080.0,2.46543093]
[1756310579760,0.11766995,112090.0,112080.0,2.0276875]
[1756310580063,0.11766995,112090.0,112080.0,2.46543093]
[1756310580562,0.11766995,112090.0,112080.0,1.53034343]
[1756310580863,0.11766995,112090.0,112080.0,1.93784]
[1756310581160,0.11766995,112090.0,112080.0,2.0270475]
[1756310581563,0.11766995,112090.0,112080.0,2.46479093]
[1756310581762,0.0891995,112090.0,112080.0,2.46479093]
[1756310583159,0.0891995,112090.0,112080.0,2.37558343]
[1756310583354,0.0891995,112090.0,112080.0,1.53034343]
[1756310583651,0.0891995,112090.0,112080.0,1.65398343]
[1756310584062,0.0891995,112090.0,112080.0,1.16954343]
[1756310584258,0.92504293,112090.0,112080.0,0.7318]
[1756310584556,2.13108293,112090.0,112080.0,0.101]
[1756310585163,2.13108293,112090.0,112080.0,0.1]
[1756310585563,2.13208293,112090.0,112080.0,0.1]
[1756310585753,2.13308293,112090.0,112080.0,0.1]
[1756310586859,2.13308293,112090.0,112080.0,0.02136809]
[1756310587163,0.2373075,112080.0,112070.0,0.01952321]
[1756310587360,0.2373234,112060.0,112050.0,0.38060446]
[1756310587565,0.25543433,112060.0,112050.0,0.73060446]
[1756310587767,0.69317776,112060.0,112050.0,0.73060446]
[1756310588261,0.16621093,112060.0,112050.0,1.25757929]
[1756310588565,0.1481,112060.0,112050.0,1.25757929]
[1756310588867,0.2373234,112060.0,112050.0,0.81983586]
[1756310589071,0.2383234,112060.0,112050.0,2.10281929]
[1756310589265,0.001,112060.0,112050.0,2.10281929]
[1756310589962,0.001,112060.0,112050.0,2.74381929]
[1756310590159,0.001,112060.0,112050.0,2.68381929]
[1756310590563,0.10751737,112080.0,112070.0,0.0892155]
[1756310590761,0.10751737,112080.0,112070.0,0.31]
[1756310591269,0.10751737,112080.0,112070.0,0.74774343]
[1756310591660,0.10751737,112080.0,112070.0,1.19775893]
[1756310592168,0.10851737,112080.0,112070.0,2.04347893]
[1756310592771,0.10951737,112080.0,112070.0,2.04347893]
[1756310593768,0.13802522,112080.0,112070.0,2.04347893]
[1756310594773,0.02030987,112080.0,112070.0,2.04347893]
[1756310596162,0.002,112080.0,112070.0,2.04347893]
[1756310596370,0.002,112080.0,112070.0,2.29347893]
[1756310596672,0.002,112080.0,112070.0,2.31372692]
[1756310599370,0.002,112080.0,112070.0,1.46800692]
[1756310599564,0.002,112080.0,112070.0,2.31364692]
[1756310601172,0.002,112080.0,112070.0,1.46800692]
[1756310601361,0.002,112080.0,112070.0,2.31348692]
[1756310602771,0.0912075,112080.0,112070.0,2.31348692]
[1756310603378,0.0912075,112080.0,112070.0,1.87574349]
[1756310603569,0.0912075,112080.0,112070.0,2.31328692]
[1756310604071,0.002,112080.0,112070.0,2.31328692]
[1756310604271,0.0892052,112090.0,112080.0,0.0892046]
[1756310604481,0.13548496,112090.0,112080.0,1.19774803]
[1756310605572,0.13548496,112090.0,112080.0,1.10854343]
[1756310605772,0.13548496,112090.0,112080.0,1.95378343]
[1756310605972,0.13748496,112090.0,112080.0,1.95378343]
[1756310606273,0.13748496,112090.0,112080.0,1.51604]
[1756310606671,0.13948496,112090.0,112080.0,1.51604]
[1756310607670,0.13948496,112090.0,112080.0,0.6708]
[1756310607875,0.97532839,112090.0,112080.0,1.51604]
[1756310608265,1.33612839,112090.0,112080.0,1.15524]
[1756310608780,1.33412839,112090.0,112080.0,1.15524]
[1756310609074,1.33212839,112090.0,112080.0,1.15724]
[1756310609576,1.33212839,112090.0,112080.0,1.15624]
[1756310609771,1.33212839,112090.0,112080.0,0.311]
[1756310609977,1.33212839,112090.0,112080.0,0.341]
[1756310610677,0.89438496,112090.0,112080.0,0.331]
[1756310610878,1.33212839,112090.0,112080.0,0.331]
[1756310611574,1.18402839,112090.0,112080.0,0.331]
[1756310611779,1.18402839,112090.0,112080.0,0.001]
[1756310611984,1.18402839,112090.0,112080.0,0.381]
[1756310612171,0.74728496,112090.0,112080.0,0.381]
[1756310612376,0.0892075,112080.0,112070.0,0.02024799]
[1756310612571,0.55535552,112080.0,112070.0,0.33024799]
[1756310613073,0.55435552,112080.0,112070.0,0.33024799]
[1756310615677,0.91515552,112080.0,112070.0,0.33024799]
[1756310615982,1.16515552,112080.0,112070.0,0.10024799]
[1756310616376,1.16515552,112080.0,112070.0,0.40024799]
[1756310617276,1.16715552,112080.0,112070.0,0.40024799]
[1756310617479,2.01235552,112080.0,112070.0,0.40024799]
[1756310619285,2.01035552,112080.0,112070.0,0.40024799]
[1756310619980,0.72841209,112080.0,112070.0,0.40024799]
[1756310620186,2.01231552,112080.0,112070.0,0.40024799]
[1756310620588,2.01131552,112080.0,112070.0,0.40024799]
[1756310620785,2.01031552,112080.0,112070.0,0.40024799]
[1756310621290,2.01031552,112080.0,112070.0,0.38]
[1756310621887,2.01031552,112080.0,112070.0,0.81774343]
[1756310621888,0.51471209,112080.0,112070.0,0.81774343]
[1756310622090,1.35987209,112080.0,112070.0,0.38]
[1756310622387,1.79761552,112080.0,112070.0,0.38]
[1756310622588,1.79861552,112080.0,112070.0,0.38]
[1756310622788,2.16041552,112080.0,112070.0,0.38]
[1756310623186,2.15941552,112080.0,112070.0,0.38]
[1756310623485,2.15841552,112080.0,112070.0,0.38]
[1756310624391,1.90841552,112080.0,112070.0,0.38]
[1756310624587,1.06325552,112080.0,112070.0,0.38]
[1756310624791,1.91261552,112080.0,112070.0,0.38]
[1756310625492,1.91361552,112080.0,112070.0,0.38]
[1756310625994,1.91461552,112080.0,112070.0,0.38]
[1756310626197,1.06525552,112080.0,112070.0,0.38]
[1756310626495,1.91461552,112080.0,112070.0,0.38]
[1756310626997,1.55381552,112080.0,112070.0,0.38]
[1756310627395,0.70445552,112080.0,112070.0,0.38]
[1756310627598,1.55317552,112080.0,112070.0,0.38]
[1756310629703,0.70445552,112080.0,112070.0,0.38]
[1756310629902,1.55285552,112080.0,112070.0,0.38]
[1756310631001,0.70445552,112080.0,112070.0,0.38]
[1756310631200,1.55257552,112080.0,112070.0,0.38]
[1756310631795,0.2373234,112060.0,112050.0,0.3608]
[1756310632009,1.52262683,112060.0,112050.0,0.7208]
[1756310632806,1.52262683,112060.0,112050.0,0.36]
[1756310633199,0.67506683,112060.0,112050.0,0.362]
[1756310633407,1.52214683,112060.0,112050.0,0.362]
[1756310634307,1.52214683,112060.0,112050.0,0.361]
[1756310634808,1.88294683,112060.0,112050.0,0.361]
[1756310635012,1.91901559,112060.0,112050.0,0.361]
[1756310635200,1.06621559,112060.0,112050.0,0.36]
[1756310635503,1.48115216,112060.0,112050.0,0.36]
[1756310635706,1.91889559,112060.0,112050.0,0.36]
[1756310637512,1.98948656,112060.0,112050.0,0.36]
[1756310638713,1.98952656,112060.0,112050.0,0.36]
[1756310639311,2.23952656,112060.0,112050.0,0.26565887]
[1756310639514,0.0892473,112030.0,112020.0,0.38075879]
[1756310639815,0.55733949,112030.0,112020.0,0.62075879]
[1756310640304,0.11959606,112030.0,112020.0,1.05850222]
[1756310640912,0.11959606,112030.0,112020.0,0.62075879]
[1756310641505,0.11959606,112030.0,112020.0,0.62275879]
[1756310641706,0.11959606,112030.0,112020.0,0.71601409]
[1756310642310,0.0892473,112030.0,112020.0,1.06450222]
[1756310643014,0.52543595,112030.0,112020.0,0.26595879]
[1756310643413,0.49519072,112030.0,112020.0,0.26595879]
[1756310644215,0.13439072,112030.0,112020.0,0.35521409]
[1756310644517,0.13439072,112030.0,112020.0,0.26595879]
[1756310645507,0.16459267,112030.0,112020.0,0.26595879]
[1756310645913,0.93293415,112030.0,112020.0,0.26595879]
[1756310646310,0.96312604,112030.0,112020.0,0.26595879]
[1756310647317,0.16458261,112030.0,112020.0,0.26595879]
[1756310649020,0.96312604,112030.0,112020.0,0.26595879]
[1756310651624,1.21312604,112030.0,112020.0,0.17788502]
[1756310651823,0.0892712,112000.0,111990.0,0.85108]
[1756310652025,0.0892712,112000.0,111990.0,1.91907911]
[1756310652227,0.0892712,112000.0,111990.0,1.91987911]
[1756310652726,0.11940892,112000.0,111990.0,1.06799911]
[1756310653419,0.11940892,112000.0,111990.0,1.91963911]
[1756310653632,1.76947235,112000.0,111990.0,0.16]
[1756310653925,1.84037958,112000.0,111990.0,0.16]
[1756310654221,1.84037958,112000.0,111990.0,0.161]
[1756310654517,0.98885958,112000.0,111990.0,0.162]
[1756310654913,1.83997958,112000.0,111990.0,0.162]
[1756310655316,1.88810479,112000.0,111990.0,0.162]
[1756310656125,1.45036136,112000.0,111990.0,0.162]
[1756310656324,1.88810479,112000.0,111990.0,0.162]
[1756310656724,1.45036136,112000.0,111990.0,0.162]
[1756310656927,1.03698479,112000.0,111990.0,0.162]
[1756310657123,1.44984136,112000.0,111990.0,0.162]
[1756310657319,1.88758479,112000.0,111990.0,0.162]
[1756310657516,0.59924136,112000.0,111990.0,0.162]
[1756310657825,0.23844136,112000.0,111990.0,1.29982263]
[1756310658226,0.23844136,112000.0,111990.0,1.21054343]
[1756310658427,0.04023263,112000.0,111990.0,0.84974343]
[1756310658623,0.12950383,112000.0,111990.0,0.93902263]
[1756310659131,0.12950383,112000.0,111990.0,0.412]
[1756310659332,0.12950383,112000.0,111990.0,0.84974343]
[1756310659530,0.12950383,112000.0,111990.0,0.93902263]
[1756310661130,0.12950383,112000.0,111990.0,0.84974343]
[1756310661929,0.27760383,112000.0,111990.0,0.84974343]
[1756310662423,0.18833263,112000.0,111990.0,0.93902263]
[1756310662628,0.04023263,112000.0,111990.0,1.3195247]
[1756310662820,0.04023263,112000.0,111990.0,0.88178127]
[1756310663025,0.04023263,112000.0,111990.0,1.3195247]
[1756310663231,0.04023263,112000.0,111990.0,1.6895247]
[1756310663425,0.04023263,112000.0,111990.0,1.3195247]